bitfinex-derivatives/quotes_BNBF0:USTF0_20251027
["timestamp","ask_amount","ask_price","bid_price","bid_amount"]
[1761538190675,0.15140671,1151.5,1148.0,1.512]
[1761538190876,0.15140671,1151.5,1148.1,0.56162975]
[1761538191075,0.15140671,1151.5,1148.2,0.56162975]
[1761538191276,0.15140671,1151.5,1148.3,0.56162975]
[1761538191476,0.15140671,1151.5,1148.4,0.56162975]
[1761538191676,0.15140671,1151.5,1148.0,1.512]
[1761538191877,0.15140671,1151.5,1148.1,0.56239825]
[1761538192175,0.15140671,1151.5,1148.2,0.56239825]
[1761538192376,0.15140671,1151.5,1148.3,0.56239825]
[1761538192578,0.15140671,1151.5,1148.4,0.56239825]
[1761538192773,0.15140671,1151.5,1147.8,0.65020992]
[1761538193074,0.15140671,1151.5,1147.9,0.56250574]
[1761538193273,0.15140671,1151.5,1148.0,0.56250574]
[1761538193476,0.15140671,1151.5,1148.1,0.56250574]
[1761538193772,0.15140671,1151.5,1148.2,0.56250574]
[1761538193973,0.15140671,1151.5,1148.3,0.56250574]
[1761538194178,0.15140671,1151.5,1148.4,0.56250574]
[1761538194371,0.15140671,1151.5,1147.8,0.65020992]
[1761538194574,0.15140671,1151.5,1147.9,0.56307442]
[1761538194874,0.15140671,1151.5,1148.0,0.56307442]
[1761538195073,0.15140671,1151.5,1148.1,0.56307442]
[1761538195272,0.15140671,1151.5,1148.2,1.67607442]
[1761538195473,0.15140671,1151.5,1148.3,0.56307442]
[1761538195678,0.15140671,1151.5,1148.4,0.56307442]
[1761538195878,0.15140671,1151.5,1148.2,1.113]
[1761538196175,0.15140671,1151.5,1148.3,0.56340104]
[1761538196477,0.15140671,1151.5,1148.2,1.113]
[1761538196478,0.15140671,1151.5,1148.4,0.56340104]
[1761538196778,0.15140671,1151.5,1148.2,1.113]
[1761538196977,0.15140671,1151.5,1148.3,0.56376849]
[1761538197179,0.15140671,1151.5,1148.4,0.56376849]
[1761538197475,0.15140671,1151.5,1148.2,1.113]
[1761538197676,0.15140671,1151.5,1148.3,0.56416807]
[1761538197881,0.15140671,1151.5,1148.4,0.56416807]
[1761538198080,0.15140671,1151.5,1148.2,1.113]
[1761538198280,0.15140671,1151.5,1148.3,0.56416851]
[1761538198478,0.15140671,1151.5,1148.4,0.56416851]
[1761538198780,0.15140671,1151.5,1148.2,1.113]
[1761538198978,0.15140671,1151.5,1148.3,0.5646508]
[1761538199179,0.15140671,1151.5,1148.4,0.5646508]
[1761538199379,0.15140671,1151.5,1148.2,1.113]
[1761538199575,2.1424741,1151.3,1148.3,0.56523912]
[1761538199780,2.1424741,1151.3,1148.4,0.56523912]
[1761538199980,2.1424741,1151.3,1148.2,1.113]
[1761538200178,2.1424741,1151.3,1148.3,0.56523901]
[1761538200386,2.1424741,1151.3,1148.4,0.56523901]
[1761538200582,2.1424741,1151.3,1148.2,1.113]
[1761538200884,2.1424741,1151.3,1148.3,0.56523901]
[1761538201084,2.1424741,1151.3,1148.4,0.56523901]
[1761538201287,2.1424741,1151.2,1148.2,1.113]
[1761538201486,2.1424741,1151.2,1148.3,0.56527441]
[1761538201684,2.1424741,1151.1,1148.4,0.56527441]
[1761538201884,2.1424741,1151.1,1148.2,1.113]
[1761538202085,2.1424741,1151.1,1148.3,0.56581355]
[1761538202388,2.1424741,1151.0,1148.4,0.56581355]
[1761538202585,2.1424741,1151.0,1148.2,1.113]
[1761538202790,2.1424741,1151.0,1148.3,0.56631461]
[1761538203089,2.1424741,1151.0,1148.4,0.56631461]
[1761538203290,2.1424741,1151.0,1148.2,1.113]
[1761538203491,2.1424741,1151.0,1148.3,0.56678657]
[1761538203786,2.1424741,1150.8,1148.4,0.56678657]
[1761538203986,2.1424741,1150.8,1148.5,0.56678657]
[1761538204190,2.1424741,1150.8,1148.2,1.76320992]
[1761538204388,2.1424741,1150.8,1148.3,0.56705072]
[1761538204587,2.1424741,1150.8,1148.4,0.56705072]
[1761538204791,2.1424741,1150.8,1148.5,0.56705072]
[1761538204992,5.1419378,1151.3,1148.6,0.56705072]
[1761538205191,5.1419378,1151.3,1148.2,1.113]
[1761538205386,2.1424741,1151.2,1148.3,0.56742884]
[1761538205591,2.1424741,1151.2,1148.4,0.56742884]
[1761538205789,2.1424741,1151.2,1148.5,0.56742884]
[1761538206089,2.1424741,1151.4,1148.6,0.56742884]
[1761538206289,2.1424741,1151.4,1148.2,1.113]
[1761538206494,2.1424741,1151.4,1148.3,0.56753286]
[1761538206696,2.1424741,1151.4,1148.4,0.56753286]
[1761538206894,2.1424741,1151.4,1148.5,0.56753286]
[1761538207092,2.1424741,1151.4,1148.6,0.56753286]
[1761538207391,2.1424741,1151.4,1148.2,1.113]
[1761538207592,2.1424741,1151.4,1148.3,0.56764242]
[1761538207892,2.1424741,1151.4,1148.4,0.56764242]
[1761538208091,2.1424741,1151.4,1148.5,0.56764242]
[1761538208392,2.1424741,1151.4,1148.6,0.56764242]
[1761538208592,2.1424741,1151.4,1148.7,0.56764242]
[1761538208796,2.1424741,1151.4,1148.2,1.76320992]
[1761538208997,2.1424741,1151.4,1148.3,0.56776197]
[1761538209198,2.29388081,1151.5,1148.4,0.56776197]
[1761538209397,2.29388081,1151.5,1148.5,0.56776197]
[1761538209696,2.1424741,1151.3,1148.6,0.56776197]
[1761538209891,2.1424741,1151.3,1148.7,0.56776197]
[1761538210096,2.1424741,1151.3,1148.8,0.56776197]
[1761538210297,2.1424741,1151.3,1148.4,0.65020992]
[1761538210498,2.1424741,1151.3,1148.5,0.56795264]
[1761538210793,2.1424741,1151.0,1148.6,0.56795264]
[1761538210993,2.1424741,1151.0,1148.7,0.56795264]
[1761538211195,2.9994637,1151.4,1148.8,0.56795264]
[1761538211394,2.9994637,1151.4,1148.9,0.56795264]
[1761538211597,2.9994637,1151.4,1148.4,0.65020992]
[1761538211794,2.29388081,1151.5,1148.5,0.56800936]
[1761538211998,2.29388081,1151.5,1148.6,0.56800936]
[1761538212197,0.15140671,1151.5,1148.7,0.56800936]
[1761538212394,0.15140671,1151.5,1148.8,0.56800936]
[1761538212596,0.15140671,1151.5,1148.9,0.56800936]
[1761538212800,2.29388081,1151.5,1149.0,0.56800936]
[1761538213099,2.29388081,1151.5,1148.6,0.65020992]
[1761538213300,2.1424741,1151.0,1148.7,0.56798033]
[1761538213497,2.1424741,1151.0,1148.8,0.56798033]
[1761538213800,2.1424741,1151.0,1148.9,0.56798033]
[1761538214000,2.1424741,1151.0,1149.0,0.56798033]
[1761538214198,2.1424741,1151.0,1148.6,0.65020992]
[1761538214396,2.9994637,1151.3,1148.7,0.56801695]
[1761538214397,2.1424741,1151.2,1148.7,0.56801695]
[1761538214599,2.1424741,1151.2,1148.8,0.56801695]
[1761538214900,2.1424741,1151.2,1148.9,0.56801695]
[1761538215100,2.1424741,1151.2,1149.0,0.56801695]
[1761538215296,2.1424741,1151.2,1148.6,0.65020992]
[1761538215501,2.1424741,1151.2,1148.7,0.56794535]
[1761538215797,2.1424741,1151.2,1148.8,0.56794535]
[1761538216001,2.1424741,1151.2,1148.9,0.56794535]
[1761538216198,2.1424741,1151.2,1149.0,0.56794535]
[1761538216401,2.1424741,1151.2,1148.6,0.65020992]
[1761538216602,2.1424741,1151.2,1148.7,0.56788551]
[1761538216802,2.1424741,1151.2,1148.8,0.56788551]
[1761538217001,2.1424741,1151.2,1148.9,0.56788551]
[1761538217303,2.1424741,1151.2,1149.0,0.56788551]
[1761538217504,2.1424741,1151.2,1148.6,0.65020992]
[1761538217704,2.1424741,1151.2,1148.7,0.5678332]
[1761538217903,2.1424741,1151.3,1148.8,0.5678332]
[1761538218100,2.1424741,1151.3,1148.9,0.5678332]
[1761538218302,2.1424741,1151.3,1149.0,0.5678332]
[1761538218500,2.1424741,1151.3,1148.6,0.65020992]
[1761538218700,2.1424741,1151.3,1148.7,0.56779698]
[1761538218899,2.1424741,1151.3,1148.8,0.56779698]
[1761538219104,0.15140671,1151.5,1148.9,0.56779698]
[1761538219303,0.15140671,1151.5,1149.0,0.56779698]
[1761538219503,0.15140671,1151.5,1148.5,0.65020992]
[1761538219806,0.15140671,1151.5,1148.6,0.56776272]
[1761538220108,0.15140671,1151.5,1148.7,0.56776272]
[1761538220306,0.15140671,1151.5,1148.8,0.56776272]
[1761538220502,0.15140671,1151.5,1148.9,0.56776272]
[1761538220705,0.15140671,1151.5,1149.0,0.56776272]
[1761538220907,0.15140671,1151.5,1149.1,0.56776272]
[1761538221104,0.15140671,1151.5,1148.6,0.65020992]
[1761538221304,0.15140671,1151.5,1148.7,0.56763295]
[1761538221503,0.15140671,1151.5,1148.8,0.56763295]
[1761538221805,0.15140671,1151.5,1148.9,0.56763295]
[1761538222003,0.15140671,1151.5,1149.0,0.56763295]
[1761538222205,3.15087041,1151.5,1149.1,0.56763295]
[1761538222508,3.15087041,1151.5,1148.8,0.65020992]
[1761538222707,2.1424741,1151.2,1148.9,0.56787982]
[1761538222908,2.1424741,1151.2,1149.0,0.56787982]
[1761538223203,2.1424741,1151.2,1149.1,0.56787982]
[1761538223407,2.1424741,1151.2,1148.8,0.65020992]
[1761538223606,2.1424741,1151.2,1148.9,0.56781362]
[1761538223806,2.1424741,1151.2,1149.0,0.56781362]
[1761538224006,2.1424741,1151.2,1149.1,0.56781362]
[1761538224204,2.1424741,1151.2,1148.8,0.65020992]
[1761538224410,2.1424741,1151.2,1148.9,0.567748]
[1761538224606,2.1424741,1151.2,1149.0,0.567748]
[1761538224809,2.1424741,1151.2,1149.1,0.567748]
[1761538225010,2.1424741,1151.2,1148.8,0.65020992]
[1761538225310,2.1424741,1151.2,1148.9,0.56774838]
[1761538225510,2.1424741,1151.2,1149.0,0.56774838]
[1761538225811,2.1424741,1151.2,1149.1,0.56774838]
[1761538226013,2.1424741,1151.2,1148.8,0.65020992]
[1761538226312,2.1424741,1151.2,1148.9,0.56770005]
[1761538226511,2.1424741,1151.2,1149.0,0.56770005]
[1761538226706,2.1424741,1151.2,1149.1,0.56770005]
[1761538226907,2.1424741,1151.2,1148.8,0.65020992]
[1761538227111,2.1424741,1151.2,1148.6,0.86358743]
[1761538227112,2.1424741,1151.2,1148.9,0.56758712]
[1761538227412,2.1424741,1151.2,1149.0,0.56758712]
[1761538227609,2.1424741,1151.2,1149.1,0.56758712]
[1761538227810,2.1424741,1151.3,1148.8,0.65020992]
[1761538228013,2.1424741,1151.3,1148.9,0.56747451]
[1761538228211,2.1424741,1151.3,1149.0,0.56747451]
[1761538228415,2.1424741,1151.3,1149.1,0.56747451]
[1761538228616,2.1424741,1151.4,1149.2,0.56747451]
[1761538228816,2.1424741,1151.4,1148.8,0.65020992]
[1761538229016,2.1424741,1151.4,1148.9,0.56731696]
[1761538229316,2.1424741,1151.4,1149.0,0.56731696]
[1761538229515,2.1424741,1151.4,1149.1,0.56731696]
[1761538229713,2.29388081,1151.5,1149.2,0.56731696]
[1761538229916,2.29388081,1151.5,1148.8,0.65020992]
[1761538230114,2.29388081,1151.5,1148.9,0.56714699]
[1761538230313,2.29388081,1151.5,1149.0,0.56714699]
[1761538230617,0.15140671,1151.5,1149.1,0.56714699]
[1761538230818,0.15140671,1151.5,1149.2,0.56714699]
[1761538231118,0.15140671,1151.5,1149.3,0.56714699]
[1761538231414,0.15140671,1151.5,1148.9,0.65020992]
[1761538231615,0.15140671,1151.5,1149.0,0.56672399]
[1761538231817,0.15140671,1151.5,1149.1,0.56672399]
[1761538232015,0.15140671,1151.5,1149.2,0.56672399]
[1761538232315,0.15140671,1151.5,1149.3,0.56672399]
[1761538232514,0.15140671,1151.5,1148.9,0.65020992]
[1761538232719,0.15140671,1151.5,1149.0,0.56653046]
[1761538232920,0.15140671,1151.5,1149.1,0.56653046]
[1761538233218,0.15140671,1151.5,1148.9,0.65020992]
[1761538233219,0.15140671,1151.5,1149.2,0.56653046]
[1761538233413,0.15140671,1151.5,1149.3,0.56653046]
[1761538233616,0.15140671,1151.5,1148.7,0.86358743]
[1761538233617,0.15140671,1151.5,1148.7,0.65020992]
[1761538233815,0.15140671,1151.5,1148.4,0.86358743]
[1761538233816,0.15140671,1151.5,1148.8,1.21661631]
[1761538234015,0.15140671,1151.5,1148.9,0.56640639]
[1761538234217,0.15140671,1151.5,1149.0,0.56640639]
[1761538234517,0.15140671,1151.5,1149.1,0.56640639]
[1761538234720,0.15140671,1151.5,1149.2,0.56640639]
[1761538234917,0.15140671,1151.5,1148.7,0.65020992]
[1761538235122,0.15140671,1151.5,1148.8,0.56629461]
[1761538235416,0.15140671,1151.5,1148.9,0.56629461]
[1761538235716,0.15140671,1151.5,1149.0,0.56629461]
[1761538235918,0.15140671,1151.5,1149.1,0.56629461]
[1761538236122,0.15140671,1151.5,1149.2,0.56629461]
[1761538236319,0.15140671,1151.5,1149.3,0.56629461]
[1761538236522,0.15140671,1151.5,1148.8,0.65020992]
[1761538236723,0.15140671,1151.5,1148.9,0.56600291]
[1761538236923,0.15140671,1151.5,1149.0,0.56600291]
[1761538237125,0.15140671,1151.5,1149.1,0.56600291]
[1761538237424,0.15140671,1151.5,1149.2,0.56600291]
[1761538237724,0.15140671,1151.5,1149.3,0.56600291]
[1761538238024,0.15140671,1151.5,1148.9,0.65020992]
[1761538238221,0.15140671,1151.5,1149.0,0.56585457]
[1761538238424,0.15140671,1151.5,1149.1,0.56585457]
[1761538238624,0.15140671,1151.5,1149.2,0.56585457]
[1761538238821,0.15140671,1151.5,1149.3,0.56585457]
[1761538239022,0.15140671,1151.5,1149.0,0.65020992]
[1761538239225,0.15140671,1151.5,1149.1,0.5657142]
[1761538239422,0.15140671,1151.5,1149.2,0.5657142]
[1761538239621,0.15140671,1151.5,1149.3,0.5657142]
[1761538239823,0.15140671,1151.5,1149.4,0.5657142]
[1761538240023,0.15140671,1151.5,1148.9,0.65020992]
[1761538240325,0.15140671,1151.5,1149.0,0.56558328]
[1761538240526,0.15140671,1151.5,1149.1,0.56558328]
[1761538240722,0.15140671,1151.5,1149.2,0.56558328]
[1761538240926,0.15140671,1151.5,1149.3,0.56558328]
[1761538241125,0.15140671,1151.5,1149.4,0.56558328]
[1761538241323,0.15140671,1151.5,1148.9,0.65020992]
[1761538241523,0.15140671,1151.5,1149.0,0.56534398]
[1761538241725,0.15140671,1151.5,1148.9,0.65020992]
[1761538241726,0.15140671,1151.5,1149.1,0.56534398]
[1761538241925,0.15140671,1151.5,1149.2,0.56534398]
[1761538242126,0.15140671,1151.5,1148.9,0.65020992]
[1761538242127,0.15140671,1151.5,1149.3,0.56534398]
[1761538242423,0.15140671,1151.5,1149.4,0.56534398]
[1761538242628,0.15140671,1151.5,1148.9,0.65020992]
[1761538242826,0.15140671,1151.5,1149.0,0.56525159]
[1761538243124,0.15140671,1151.5,1149.1,0.56525159]
[1761538243426,0.15140671,1151.5,1149.2,0.56525159]
[1761538243621,0.15140671,1151.5,1149.3,0.56525159]
[1761538243822,0.15140671,1151.5,1149.4,0.56525159]
[1761538244027,0.15140671,1151.5,1148.9,0.65020992]
[1761538244322,0.15140671,1151.5,1149.0,0.56516602]
[1761538244526,0.15140671,1151.5,1149.1,0.56516602]
[1761538244723,0.15140671,1151.5,1149.2,0.56516602]
[1761538244922,0.15140671,1151.5,1149.3,0.56516602]
[1761538245124,0.15140671,1151.5,1149.4,0.56516602]
[1761538245326,0.15140671,1151.5,1148.9,0.65020992]
[1761538245526,0.15140671,1151.5,1149.0,0.56509882]
[1761538245724,0.15140671,1151.5,1148.9,0.65020992]
[1761538245725,0.15140671,1151.5,1149.1,0.56509882]
[1761538245929,0.15140671,1151.5,1149.2,0.56509882]
[1761538246126,0.15140671,1151.5,1149.3,0.56509882]
[1761538246429,0.15140671,1151.5,1149.4,0.56509882]
[1761538246628,0.15140671,1151.5,1148.9,0.65020992]
[1761538246830,0.15140671,1151.5,1149.0,0.56508157]
[1761538247128,0.15140671,1151.5,1148.9,0.65020992]
[1761538247129,0.15140671,1151.5,1149.1,0.56508157]
[1761538247328,0.15140671,1151.5,1149.2,0.56508157]
[1761538247525,0.15140671,1151.5,1149.3,0.56508157]
[1761538247830,0.15140671,1151.5,1149.4,0.56508157]
[1761538248033,0.15140671,1151.5,1149.5,0.56508157]
[1761538248329,0.15140671,1151.5,1149.6,0.56508157]
[1761538248532,0.15140671,1151.5,1149.7,0.56508157]
[1761538248729,0.15140671,1151.5,1148.5,0.86358743]
[1761538248730,0.15140671,1151.5,1149.0,0.65020992]
[1761538248933,0.15140671,1151.5,1149.1,0.5650435]
[1761538249139,0.15140671,1151.5,1149.2,0.5650435]
[1761538249334,0.15140671,1151.5,1149.3,0.5650435]
[1761538249634,0.15140671,1151.5,1149.4,0.5650435]
[1761538249929,0.15140671,1151.5,1149.5,0.5650435]
[1761538250129,0.15140671,1151.5,1149.6,0.5650435]
[1761538250334,0.15140671,1151.5,1149.7,0.5650435]
[1761538250530,0.15140671,1151.5,1149.0,0.65020992]
[1761538250830,0.15140671,1151.5,1149.1,0.5650468]
[1761538251032,0.15140671,1151.5,1149.2,0.5650468]
[1761538251229,0.15140671,1151.5,1149.0,0.65020992]
[1761538251230,0.15140671,1151.5,1149.3,0.5650468]
[1761538251433,0.15140671,1151.5,1149.4,0.5650468]
[1761538251732,0.15140671,1151.5,1149.5,0.5650468]
[1761538251936,0.15140671,1151.5,1149.6,0.5650468]
[1761538252136,0.15140671,1151.5,1149.0,0.65020992]
[1761538252438,0.15140671,1151.5,1149.1,0.56510394]
[1761538252637,0.15140671,1151.5,1149.2,0.56510394]
[1761538252831,0.15140671,1151.5,1149.3,0.56510394]
[1761538253036,0.15140671,1151.5,1149.4,2.04010394]
[1761538253236,0.15140671,1151.5,1149.5,0.56510394]
[1761538253437,0.15140671,1151.5,1149.4,1.475]
[1761538253639,0.15140671,1151.5,1149.5,0.56515386]
[1761538253936,0.15140671,1151.5,1149.4,1.475]
[1761538254145,0.15140671,1151.5,1149.5,0.56515386]
[1761538254341,0.15140671,1151.5,1149.4,1.475]
[1761538254545,0.15140671,1151.5,1149.5,0.56521986]
[1761538254745,0.15140671,1151.5,1149.4,1.475]
[1761538254946,0.15140671,1151.5,1149.5,0.56521986]
[1761538255147,0.15140671,1151.5,1149.4,1.475]
[1761538255348,0.15140671,1151.5,1149.5,0.5652936]
[1761538255547,0.15140671,1151.5,1149.4,1.475]
[1761538255748,0.15140671,1151.5,1149.5,0.5652935]
[1761538255948,0.15140671,1151.5,1149.4,1.475]
[1761538256144,0.15140671,1151.5,1149.5,0.5652935]
[1761538256442,0.15140671,1151.5,1149.4,1.475]
[1761538256647,0.15140671,1151.5,1149.5,0.5653847]
[1761538256844,0.15140671,1151.5,1149.4,1.475]
[1761538257044,0.15140671,1151.5,1149.5,0.5653847]
[1761538257345,0.15140671,1151.5,1149.4,1.475]
[1761538257543,0.15140671,1151.5,1149.5,0.56550116]
[1761538257743,0.15140671,1151.5,1149.4,1.475]
[1761538257946,0.15140671,1151.5,1149.5,0.56550116]
[1761538258145,0.15140671,1151.5,1149.4,1.475]
[1761538258343,0.15140671,1151.5,1149.5,0.565634]
[1761538258548,0.15140671,1151.5,1149.4,1.475]
[1761538258745,0.15140671,1151.5,1149.5,0.565634]
[1761538259045,0.15140671,1151.5,1149.4,1.475]
[1761538259244,0.15140671,1151.5,1149.5,0.56562442]
[1761538259449,0.15140671,1151.5,1149.6,0.56562442]
[1761538259648,0.15140671,1151.5,1149.7,0.56562442]
[1761538259845,0.15140671,1151.5,1149.4,1.475]
[1761538260149,0.15140671,1151.5,1149.5,0.56565406]
[1761538260344,0.15140671,1151.5,1149.6,0.56565406]
[1761538260648,0.15140671,1151.5,1149.7,0.56565406]
[1761538260848,0.15140671,1151.5,1149.4,1.475]
[1761538261048,0.15140671,1151.5,1149.5,0.56565406]
[1761538261345,0.15140671,1151.5,1149.6,0.56565406]
[1761538261544,0.15140671,1151.5,1149.7,0.56565406]
[1761538261748,0.15140671,1151.5,1149.4,1.475]
[1761538261944,0.15140671,1151.5,1149.5,0.56570657]
[1761538262146,0.15140671,1151.5,1149.6,0.56570657]
[1761538262349,0.15140671,1151.5,1149.7,0.56570657]
[1761538262551,0.15140671,1151.5,1149.4,1.475]
[1761538262745,0.15140671,1151.5,1149.5,0.56576228]
[1761538262944,0.15140671,1151.5,1149.6,0.56576228]
[1761538263249,0.15140671,1151.5,1149.7,0.56576228]
[1761538263446,0.15140671,1151.5,1149.4,1.475]
[1761538263645,0.15140671,1151.5,1149.5,0.56583662]
[1761538263845,0.15140671,1151.5,1149.6,0.56583662]
[1761538264048,0.15140671,1151.5,1149.7,0.56583662]
[1761538264249,0.15140671,1151.5,1149.4,1.475]
[1761538264447,0.15140671,1151.5,1149.5,0.56594241]
[1761538264651,0.15140671,1151.5,1149.6,0.56594241]
[1761538264849,0.15140671,1151.5,1149.7,0.56594241]
[1761538265052,0.15140671,1151.5,1149.4,1.475]
[1761538265249,0.15140671,1151.5,1149.5,0.56588949]
[1761538265453,0.15140671,1151.5,1149.6,0.56588949]
[1761538265652,0.15140671,1151.5,1149.7,0.56588949]
[1761538265851,0.15140671,1151.5,1149.4,1.475]
[1761538266056,0.15140671,1151.5,1149.5,0.56596004]
[1761538266256,0.15140671,1151.5,1149.6,0.56596004]
[1761538266458,0.15140671,1151.5,1149.7,0.56596004]
[1761538266756,0.15140671,1151.5,1149.4,1.475]
[1761538266956,0.15140671,1151.5,1149.5,0.56604834]
[1761538267255,0.15140671,1151.5,1149.6,0.56604834]
[1761538267454,0.15140671,1151.5,1149.7,0.56604834]
[1761538267651,0.15140671,1151.5,1149.4,1.475]
[1761538267852,0.15140671,1151.5,1149.5,0.56614565]
[1761538268053,0.15140671,1151.5,1149.6,0.56614565]
[1761538268356,0.15140671,1151.5,1149.7,0.56614565]
[1761538268556,0.15140671,1151.5,1149.4,1.475]
[1761538268757,0.15140671,1151.5,1149.5,0.56626782]
[1761538268954,0.15140671,1151.5,1149.6,0.56626782]
[1761538269155,0.15140671,1151.5,1149.7,0.56626782]
[1761538269458,0.15140671,1151.5,1149.8,0.56626782]
[1761538269659,0.15140671,1151.5,1149.4,1.475]
[1761538269859,0.15140671,1151.5,1149.5,0.56639735]
[1761538270156,0.15140671,1151.5,1149.6,0.56639735]
[1761538270355,0.15140671,1151.5,1149.7,0.56639735]
[1761538270559,0.15140671,1151.5,1149.8,0.56639735]
[1761538270859,0.15140671,1151.5,1149.4,1.475]
[1761538271060,0.15140671,1151.5,1149.5,0.56650858]
[1761538271255,0.15140671,1151.5,1149.6,0.56650858]
[1761538271460,0.15140671,1151.5,1149.7,0.56650858]
[1761538271658,0.15140671,1151.5,1149.8,0.56650858]
[1761538271857,0.15140671,1151.5,1149.9,0.56650858]
[1761538272058,0.15140671,1151.5,1149.4,1.475]
[1761538272257,0.15140671,1151.5,1149.5,0.56660226]
[1761538272457,0.15140671,1151.5,1149.6,0.56660226]
[1761538272659,0.15140671,1151.5,1149.7,0.56660226]
[1761538272857,0.15140671,1151.5,1149.8,0.56660226]
[1761538273061,0.15140671,1151.5,1149.9,0.56660226]
[1761538273361,0.15140671,1151.5,1149.4,1.475]
[1761538273560,0.15140671,1151.5,1149.5,0.56670528]
[1761538273758,0.15140671,1151.5,1149.6,0.56670528]
[1761538273960,0.15140671,1151.5,1149.7,0.56670528]
[1761538274163,0.15140671,1151.5,1149.8,0.56670528]
[1761538274458,0.15140671,1151.5,1149.4,1.475]
[1761538274658,0.15140671,1151.5,1149.5,0.56681785]
[1761538274858,0.15140671,1151.5,1149.6,0.56681785]
[1761538275061,0.15140671,1151.5,1149.4,1.475]
[1761538276657,2.1424741,1151.4,1149.4,1.475]
[1761538278266,0.15140671,1151.5,1149.4,1.475]
[1761538298986,2.1424741,1151.3,1149.4,1.475]
[1761538299489,2.1424741,1151.4,1149.4,1.475]
[1761538299983,2.1424741,1151.1,1149.4,1.475]
[1761538301591,0.15140671,1151.5,1149.4,1.475]
[1761538305288,2.29388081,1151.5,1149.4,1.475]
[1761538305992,0.15140671,1151.5,1149.4,1.475]
[1761538307088,0.15140671,1151.5,1147.9,0.65020992]
[1761538307291,0.15140671,1151.5,1148.0,0.56338712]
[1761538307489,2.1424741,1151.4,1148.1,0.56338712]
[1761538307687,2.1424741,1151.4,1148.2,0.56338712]
[1761538307892,2.1424741,1151.4,1148.3,0.56338712]
[1761538308187,2.1424741,1151.4,1147.9,0.65020992]
[1761538308490,2.1424741,1151.4,1148.0,0.56336523]
[1761538308693,2.1424741,1151.4,1148.1,0.56336523]
[1761538308893,2.1424741,1151.4,1148.2,0.56336523]
[1761538309190,0.15140671,1151.5,1148.3,0.56336523]
[1761538309389,0.15140671,1151.5,1148.4,0.56336523]
[1761538309590,0.15140671,1151.5,1147.8,0.65020992]
[1761538309790,0.15140671,1151.5,1147.9,0.56333407]
[1761538309989,0.15140671,1151.5,1148.0,0.56333407]
[1761538310194,0.15140671,1151.5,1148.1,0.56333407]
[1761538310490,0.15140671,1151.5,1148.2,0.56333407]
[1761538310690,0.15140671,1151.5,1148.3,0.56333407]
[1761538310891,0.15140671,1151.5,1148.4,2.15233407]
[1761538311089,0.15140671,1151.5,1148.4,1.589]
[1761538311595,0.15140671,1151.5,1148.5,1.191]
[1761538322104,2.1424741,1150.9,1148.5,1.191]
[1761538325403,2.1424741,1151.0,1148.5,1.191]
[1761538326308,2.1424741,1150.9,1148.5,1.191]
[1761538327405,2.1424741,1150.8,1148.5,1.191]
[1761538328408,0.15140671,1151.5,1148.5,1.191]
[1761538330608,2.1424741,1151.0,1148.5,1.191]
[1761538331011,2.1424741,1151.1,1148.5,1.191]
[1761538331508,2.1424741,1151.2,1148.5,1.191]
[1761538332211,2.1424741,1151.1,1148.5,1.191]
[1761538332714,2.1424741,1151.4,1148.5,1.191]
[1761538333118,2.1424741,1151.0,1148.5,1.191]
[1761538333715,2.1424741,1150.0,1148.5,1.191]
[1761538334218,2.1424741,1149.9,1148.5,1.191]
[1761538336215,2.1424741,1150.0,1148.5,1.191]
[1761538336921,4.2849482,1150.9,1148.5,1.191]
[1761538336922,2.1424741,1150.6,1148.5,1.191]
[1761538337421,2.1424741,1150.7,1148.5,1.191]
[1761538338318,2.9994637,1151.3,1148.5,1.191]
[1761538338319,2.1424741,1150.4,1148.5,1.191]
[1761538338618,2.9994637,1151.3,1148.5,1.191]
[1761538338619,2.1424741,1149.8,1148.5,1.191]
[1761538339021,2.1424741,1149.6,1148.5,1.191]
[1761538339518,2.1424741,1149.5,1148.5,1.191]
[1761538340022,2.1424741,1149.3,1148.5,1.191]
[1761538340420,2.1424741,1151.4,1148.5,1.191]
[1761538341922,2.1424741,1149.9,1148.5,1.191]
[1761538343023,2.1424741,1149.8,1148.5,1.191]
[1761538344121,2.9994637,1150.2,1144.9,0.6447412]
[1761538344323,2.9994637,1150.2,1145.3,0.15167133]
[1761538344523,2.1424741,1150.2,1145.4,0.56149547]
[1761538344820,2.1424741,1150.2,1145.5,0.56149547]
[1761538345121,2.1424741,1150.3,1145.3,0.15167133]
[1761538345423,2.1424741,1150.3,1145.4,0.56057288]
[1761538345626,2.1424741,1150.4,1145.5,0.5605079]
[1761538345925,2.1424741,1150.4,1145.3,0.15167133]
[1761538346126,2.1424741,1150.6,1145.4,0.56050855]
[1761538346321,2.1424741,1150.6,1145.3,0.15167133]
[1761538346625,2.1424741,1149.4,1145.4,0.55976511]
[1761538346826,2.1424741,1149.4,1145.5,0.55976511]
[1761538347026,0.15177055,1148.5,1145.6,0.55973406]
[1761538347228,0.15177055,1148.5,1145.5,1.189]
[1761538348927,0.15177055,1148.5,1145.6,1.583]
[1761538361457,0.15177055,1148.5,1145.6,3.055]
[1761538369555,0.15177055,1148.5,1145.6,1.583]
[1761538369753,0.15177055,1148.5,1142.8,0.15195943]
[1761538370553,2.1424741,1147.8,1142.8,0.15195943]
[1761538370954,0.15177055,1148.5,1142.8,0.15195943]
[1761538371655,0.15177055,1148.5,1141.0,0.6447412]
[1761538371855,0.15177055,1148.5,1142.6,0.15211619]
[1761538372450,0.15177055,1148.5,1142.7,1.318]
[1761538372953,0.15177055,1148.5,1142.8,1.542]
[1761538376654,0.15177055,1148.5,1142.9,0.54839025]
[1761538376855,0.15177055,1148.5,1142.8,1.542]
[1761538377057,0.15177055,1148.5,1142.9,0.54837399]
[1761538377353,0.15177055,1148.5,1143.0,0.54868583]
[1761538377557,0.15177055,1148.5,1143.1,0.54868583]
[1761538377756,0.15177055,1148.5,1142.8,1.542]
[1761538377955,0.15177055,1148.5,1142.9,0.54861352]
[1761538378154,0.15177055,1148.5,1143.0,0.54861352]
[1761538378354,0.15177055,1148.5,1143.1,0.54861352]
[1761538378557,0.15177055,1148.5,1143.2,0.54861352]
[1761538378760,0.15177055,1148.5,1143.3,0.54902393]
[1761538378957,0.15177055,1148.5,1143.4,0.54895083]
[1761538379158,0.15177055,1148.5,1142.8,1.542]
[1761538379358,0.15177055,1148.5,1142.9,0.54914993]
[1761538379561,0.15177055,1148.5,1142.9,1.19389113]
[1761538379761,0.15177055,1148.5,1143.0,0.54914993]
[1761538380460,0.15177055,1148.5,1143.0,1.19389113]
[1761538380658,0.15177055,1148.5,1143.1,0.54914993]
[1761538381061,0.15177055,1148.5,1143.1,1.19389113]
[1761538381262,0.15177055,1148.5,1143.2,1.19389113]
[1761538381458,0.15177055,1148.5,1143.3,0.54914993]
[1761538382161,0.15177055,1148.5,1143.4,0.54914993]
[1761538382359,0.15177055,1148.5,1143.5,0.54914993]
[1761538382564,0.15177055,1148.5,1143.6,0.54914993]